Cogmind - Beta 14 @@@ ROGUE MODE // 2024.09.13 @ 08:24:21 Player: J1ang-5h1 Result: Destroyed by Executioner with Helical Railgun Performance ------------- Evolutions (8) 4000 Regions Visited (21) 4200 Robots Destroyed (230) 1150 Value Destroyed (9583) 9583 Prototype IDs (52) 1040 Alien Tech Used (2) 400 Bonus (5087) 5087 TOTAL SCORE: 25460 Bonus ------- High Alert Combat Kills 191 Follower Combat Kills 989 Aligned with FarCom 300 Met Zhirov 300 Met Warlord at Base 500 MAIN.C Attacked Warlord 500 Met R17 at Cetus 500 Met R17 at Research 2000 Friendly Fire -193 Cogmind --------- Core Integrity 0/1450 Matter 300/300 Energy 100/100 System Corruption 2% Temperature Cool (0) Movement Core (150) Ox2 Location -2/Research Parts ------- > --- POWER (4) -------- (None) > --- PROPULSION (6) --- (None) > --- UTILITY (10) ----- Advanced Signal Interpreter > --- WEAPON (3) ------- Vortex Lance Vortex Lance > --- INVENTORY (5) ---- Advanced Energy Well (500) Improved Matter Compressor (300) Advanced Dynamic Insulation System Improved Plasma Cutter Peak State ------------ > --- POWER ------------ Reinforced Antimatter Reactor Heavy Antimatter Reactor Micro Antimatter Reactor Quantum Reactor > --- PROPULSION ------- Heavy Treads Centrium Heavy Treads Centrium Heavy Treads > --- UTILITY ---------- Improved Cooling System High-capacity Storage Unit Advanced Signal Interpreter Long-range Terrain Scanner Improved Kinecellerator Improved Weapon Cycler Advanced Transmission Jammer Experimental Propulsion Shielding Makeshift Ablative Armor Improved Remote Force Field > --- WEAPON ----------- Firepult Hardcell Cannon > --- INVENTORY -------- Armored Medium Treads Advanced Energy Well Improved Matter Compressor Improved Focal Shield Improved Thermal Shield Improved Hardlight Generator Advanced Shield Generator Point Defense System Advanced Dynamic Insulation System Long-range Tractor Beam Transdimensional Reconstructor Advanced Variable Charge Gun Vortex Shotgun Vortex Shotgun Heavy Shock Bomb Launcher Improved Plasma Cutter Vortex Lance Vortex Lance [Rating: 176] Favorites ----------- Power Antimatter Reactor Engine Light Angular Momentum Engine Power Core Micro Nuclear Core Reactor Antimatter Reactor Propulsion Centrium Heavy Treads Treads Centrium Heavy Treads Leg Aluminum Leg Wheel Compact Wheel Hover Unit Gravmag System Utility High-capacity Storage Unit Device Improved Heat Sink Storage High-capacity Storage Unit Processor Advanced Signal Interpreter Protection Improved Utility Shielding Weapon Advanced Assault Cannon Energy Gun EM Pulse Gun Energy Cannon Firepult Ballistic Gun Advanced KE Penetrator Ballistic Cannon Advanced Assault Cannon Launcher Thermoblaster Special Weapon Mining Laser Impact Weapon Heavy Mace Slashing Weapon Greatsword Piercing Weapon Vortex Lance Build | -11 -10 -10 -10 -9 -8 -7 -6 -6 -6 -5 -5 -5 -5 -4 -4 -4 -4 -4 -3 -3 -2 ------- Run | Yrd Mat Min Exi Min Mat Fac Fac Ext Cet Fac Upp Upp War Pro Fac Upp Upp Zhi Pro Res Res Slots Evolved 16 | . . . . . 4 2 2 . . 2 . . . . 2 . . . . 2 2 Power 3 | . . . . . . 1 . . . . . . . . 1 . . . . . 1 Propulsion 4 | . . . . . . 1 1 . . 1 . . . . 1 . . . . . . Utility 8 | . . . . . 4 . 1 . . 1 . . . . . . . . . 2 . Weapon 1 | . . . . . . . . . . . . . . . . . . . . . 1 Parts Attached 320 | 3 12 17 2 3 65 19 41 34 12 6 10 8 16 2 2 5 9 11 11 3 29 Power 43 | . 1 2 . 1 7 3 5 6 . 1 . . 5 . . 1 1 1 2 2 5 Engine 12 | . 1 1 . 1 1 . 1 6 . 1 . . . . . . . . . . . Core 14 | . . 1 . . 6 3 4 . . . . . . . . . . . . . . Reactor 17 | . . . . . . . . . . . . . 5 . . 1 1 1 2 2 5 Propulsion 45 | . 2 4 . . 9 6 8 9 2 2 . . . . 1 . . . . . 2 Treads 15 | . 2 . . . 1 . 5 2 2 1 . . . . 1 . . . . . 1 Leg 13 | . . 2 . . 6 . . 4 . . . . . . . . . . . . 1 Wheel 16 | . . 2 . . 2 6 2 3 . 1 . . . . . . . . . . . Hover 1 | . . . . . . . 1 . . . . . . . . . . . . . . Flight . | . . . . . . . . . . . . . . . . . . . . . . Utility 114 | 2 3 3 2 . 25 7 8 9 4 2 6 8 5 1 . 4 6 7 1 1 10 Device 79 | 2 1 1 . . 14 5 8 9 2 2 5 4 4 1 . 2 5 3 . 1 10 Storage 6 | . 2 1 1 . . . . . . . . . . . . . . 2 . . . Processor 1 | . . . . . . . . . 1 . . . . . . . . . . . . Hackware . | . . . . . . . . . . . . . . . . . . . . . . Protection 28 | . . 1 1 . 11 2 . . 1 . 1 4 1 . . 2 1 2 1 . . Artifact . | . . . . . . . . . . . . . . . . . . . . . . Weapon 118 | 1 6 8 . 2 24 3 20 10 6 1 4 . 6 1 1 . 2 3 8 . 12 Energy Gun 30 | 1 3 4 . 1 4 . . 2 4 1 1 . 2 . . . . 1 2 . 4 Energy Cannon 8 | . . . . . 1 . 2 . 2 . . . . . . . . . 1 . 2 Ballistic Gun 8 | . 2 . . 1 3 . . . . . 2 . . . . . . . . . . Ballistic Cannon 28 | . . 2 . . . 2 7 4 . . . . 3 . 1 . 1 2 3 . 3 Launcher 20 | . . 1 . . 4 . 7 3 . . . . . 1 . . 1 . 2 . 1 Special Weapon 2 | . 1 1 . . . . . . . . . . . . . . . . . . . Impact Weapon 13 | . . . . . 8 . 4 1 . . . . . . . . . . . . . Slashing Weapon 6 | . . . . . 4 1 . . . . 1 . . . . . . . . . . Piercing Weapon 3 | . . . . . . . . . . . . . 1 . . . . . . . 2 Special Melee Weapon . | . . . . . . . . . . . . . . . . . . . . . . Unidentified Prototypes 15 | . . . . . . . . 1 1 . 4 . 2 . . . . 6 . . 1 Corrupted Parts 2 | . . . . . . . . . . . . . . . . . . . 2 . . System Corruption 18 | . . . . . . . . . . . . . . . . . . . 18 . . Parts Lost 92 | . 2 7 . 2 18 3 16 2 2 1 2 1 1 . . . 2 . . . 33 Power 21 | . 1 2 . 1 3 1 4 . . 1 . 1 1 . . . . . . . 6 Propulsion 20 | . . 4 . . 5 . 5 . 1 . . . . . . . . . . . 5 Utility 37 | . . . . . 9 2 6 . 1 . 2 . . . . . 2 . . . 15 Weapon 14 | . 1 1 . 1 1 . 1 2 . . . . . . . . . . . . 7 Highest Loss Streak 23 | . 1 3 . 2 5 2 8 1 2 1 2 1 1 . . . 1 . . . 23 To Critical Strikes 4 | . . . . . . . . 1 1 . . . . . . . . . . . 2 Average Slot Usage (%) 88 | . 99 91 100 96 91 87 83 95 84 83 87 84 87 88 78 78 83 83 83 80 72 Engine 5 | . 13 12 14 13 2 . . 9 13 6 11 7 8 . . . . . . . . Core 3 | . . . . . 5 14 11 2 . . . . . . . . . . . . . Reactor 3 | . . . . . . . . . . . . . 1 11 10 10 14 15 15 14 15 Treads 9 | . 27 . . . . . 9 8 11 16 17 17 17 17 15 15 15 15 15 14 8 Leg 3 | . . 18 . . 7 . . 9 2 . . . . . . . . . . . . Wheel 4 | . . 3 28 28 7 14 9 5 . . . . . . . . . . . . . Device 21 | . 14 6 . . 21 23 26 39 34 34 33 27 17 17 15 19 26 27 21 23 24 Storage 7 | . 14 14 14 14 9 7 6 6 6 5 5 5 5 5 5 5 5 5 5 4 4 Processor 1 | . . . . . . . . . 1 5 5 5 5 5 5 5 5 5 5 4 4 Protection 8 | . . 7 14 14 17 13 5 . 3 . . 6 17 17 15 10 3 3 10 9 3 Energy Gun 7 | . 24 24 28 23 3 . . . 6 11 8 5 3 . . . . 2 3 . 1 Ballistic Gun 1 | . 3 . . 1 3 . . . . . 1 5 3 . . . . . . . . Ballistic Cannon 3 | . . . . . . 1 11 10 . . . . 3 6 5 10 8 8 3 9 7 Impact Weapon 1 | . . . . . 8 7 . . . . . . . . . . . . . . . Peak Build Rating 176 | 10 10 12 12 12 35 47 63 85 102 101 111 112 117 118 126 133 137 144 146 149 176 Average Rating 66 | 6 8 8 11 11 25 43 53 64 95 96 104 107 110 117 125 127 134 139 141 147 137 On Entrance 79 | 6 7 10 8 12 12 30 45 52 85 92 101 111 105 117 118 126 133 137 142 141 149 Naked Turns . | . . . . . . . . . . . . . . . . . . . . . . Heaviest Build 177 | 15 30 52 52 52 71 76 77 91 102 82 84 84 126 126 129 141 139 141 142 143 177 Greatest Support 230 | 20 40 26 26 26 28 40 52 100 160 188 188 188 188 188 230 230 230 230 230 230 230 Greatest Overweight (x) 25 | . . 8 1 1 18 7 24 23 1 5 . . . . . . . . . . 25 Average Overweight (x) . | . . 1 1 1 2 1 1 1 . 2 . . . . . . . . . . 1 Largest Inventory Capacity 20 | 8 15 20 20 20 20 20 20 20 20 20 20 20 20 20 20 20 20 20 20 20 20 Average Capacity 19 | 8 13 15 20 20 20 20 20 20 20 20 20 20 20 20 20 20 20 20 20 20 19 Most Carried 20 | 8 15 15 20 20 20 20 20 20 20 20 20 20 20 20 20 20 20 20 20 20 20 Average Carried 18 | 6 12 13 19 19 19 19 19 18 18 19 19 19 19 20 19 20 19 19 19 19 16 Final Capacity 20 | 8 15 20 20 20 20 20 20 20 20 20 20 20 20 20 20 20 20 20 20 20 5 Final Carried 20 | 7 14 15 20 20 20 20 16 20 20 20 20 20 20 20 20 20 20 20 20 20 4 Class Distribution -------------------- 41% | Scavenger-Mutant 33% | Mutant 13% | Infiltrator-Mutant 3% | Generator-Skirmisher Dominant Class ---------------- Mutant | -10/Materials Mutant | -10/Mines Mutant | -10/Exiles Mutant | -9/Mines Mutant | -8/Materials Infiltrator-Mutant | -7/Factory Infiltrator-Mutant | -6/Factory Scavenger-Mutant | -6/Extension Scavenger-Mutant | -6/Cetus Scavenger-Mutant | -5/Factory Scavenger-Mutant | -5/Upper Caves Scavenger-Mutant | -5/Upper Caves Commander-Mutant | -5/Warlord Scavenger-Mutant | -4/Proximity Caves Scavenger-Skirmisher | -4/Factory Scavenger-Mutant | -4/Upper Caves Scavenger-Mutant | -4/Upper Caves Scavenger-Mutant | -4/Zhirov Scavenger-Mutant | -3/Proximity Caves Scavenger-Skirmisher | -3/Research Generator-Skirmisher | -2/Research Resources | -11 -10 -10 -10 -9 -8 -7 -6 -6 -6 -5 -5 -5 -5 -4 -4 -4 -4 -4 -3 -3 -2 ----------- Run | Yrd Mat Min Exi Min Mat Fac Fac Ext Cet Fac Upp Upp War Pro Fac Upp Upp Zhi Pro Res Res Matter Collected 7174 | 230 212 264 . 95 1006 274 1397 748 120 18 144 135 316 48 . 99 497 348 362 . 861 Remotely 665 | . . . . . . . 148 . . . . . . . . . . . . . 517 Salvage Created 9634 | 123 635 192 . 94 2013 452 978 762 489 105 352 137 52 57 . 62 765 360 952 . 1054 Parts 380 | 11 46 18 . 5 79 11 59 37 4 5 7 5 . 1 . 2 27 8 40 . 15 Haulers Intercepted 6 | . 1 . . . 3 1 . . . . 1 . . . . . . . . . . Recyclers Shooed 3 | . . . . . 1 . 1 1 . . . . . . . . . . . . . Parts Field Recycled . | . . . . . . . . . . . . . . . . . . . . . . Retrieved Matter . | . . . . . . . . . . . . . . . . . . . . . . Parts Self-Destructed 90 | . . . . . . . . . . . 7 5 . 13 . 26 26 5 8 . . Prevented 48 | . . . . . . . . . . . 3 . . . . . 16 . 29 . . Kills | -11 -10 -10 -10 -9 -8 -7 -6 -6 -6 -5 -5 -5 -5 -4 -4 -4 -4 -4 -3 -3 -2 ------- Run | Yrd Mat Min Exi Min Mat Fac Fac Ext Cet Fac Upp Upp War Pro Fac Upp Upp Zhi Pro Res Res Combat Hostiles Destroyed 180 | . 18 9 . 4 34 7 33 9 6 2 5 2 . 7 . 1 14 . 12 . 17 Melee 18 | . . . . . 12 4 . . . . . . . . . . 1 . . . 1 Guns 44 | . 18 5 . 4 9 . . . . 1 3 2 . . . . . . . . 2 Cannons 37 | . . 1 . . . 2 16 2 . . . . . . . 1 9 . . . 6 AOE 46 | . . 3 . . 3 . 17 7 . . . . . 7 . . 2 . 6 . 1 Classes Destroyed 20 | 2 5 1 . 1 3 2 1 . . . . . . 1 . . 1 . 1 . 2 Worker 11 | . 2 1 . . 4 . 1 3 . . . . . . . . . . . . . Builder 10 | . . . . . 3 1 3 3 . . . . . . . . . . . . . Tunneler 5 | 3 . . . . . . . 2 . . . . . . . . . . . . . Hauler 6 | . 1 . . . 3 1 . . . . 1 . . . . . . . . . . Recycler 13 | 1 . . . . 4 1 2 4 . . . . . . . . . . . . 1 Mechanic 1 | . . . . . . . 1 . . . . . . . . . . . . . . Watcher 12 | . 2 . . . 3 1 1 . 2 1 . . . . . . . . . . 2 Swarmer 40 | . 8 5 . 3 4 . 10 5 . . . . . 1 . . 2 . 2 . . Saboteur 1 | . . . . . . . . . . . . . . . . . 1 . . . . Grunt 69 | . 10 3 . . 24 . 7 3 . . 5 . . . . 1 6 . 3 . 7 Brawler 3 | . . . . 1 . . . 1 . . . . . . . . . . 1 . . Duelist 5 | . . . . . 2 . . . . . . . . . . . 2 . . . 1 Sentry 12 | . . . . . 4 3 2 . . . . . . . . . 1 . 1 . 1 Demolisher 1 | . . 1 . . . . . . . . . . . . . . . . . . . Hunter 15 | . . . . . . 2 5 . . . . 2 . . . . 2 . 4 . . Programmer 13 | . . . . . . 2 9 . . 2 . . . . . . . . . . . Behemoth 1 | . . . . . . . . . . . . . . . . . . . 1 . . Cetus Guard 6 | . . . . . . . . . 6 . . . . . . . . . . . . Striker 5 | . . . . . . . . . . . . . . . . . . . . . 5 Executioner 3 | . . . . . . . . . . . . . . . . . . . . . 3 Assembled 6 | . . . . . . . . . . . . . . 6 . . . . . . . Bouncer 1 | . . . . . . . . . . . . . 1 . . . . . . . . Best Kill Streak 12 | 2 3 3 . 3 8 4 10 12 4 2 5 2 . 5 . 1 7 . 5 . 6 Combat Bots Only 8 | . 3 3 . 3 5 2 8 4 3 2 5 2 . 5 . 1 7 . 5 . 6 Max Kills in Single Turn 7 | 1 1 2 . 1 3 1 4 7 2 1 1 1 1 2 . 1 1 . 1 . 3 Gunslinging . | . . . . . . . . . . . . . . . . . . . . . . Exploded 4 | . . 2 . . 3 . 4 3 . . . . . 2 . . 1 . 1 . 1 Melee 1 | . . . . . 1 1 . . . . . . . . . . 1 . . . 1 Uniques/NPCs Destroyed . | . . . . . . . . . . . . . . . . . . . . . . Combat | -11 -10 -10 -10 -9 -8 -7 -6 -6 -6 -5 -5 -5 -5 -4 -4 -4 -4 -4 -3 -3 -2 -------- Run | Yrd Mat Min Exi Min Mat Fac Fac Ext Cet Fac Upp Upp War Pro Fac Upp Upp Zhi Pro Res Res Hostile Shots Fired 1491 | . 85 63 . 14 314 194 184 21 10 14 42 25 42 17 . 25 151 . 49 . 241 Missed 419 | . 27 15 . 3 92 62 53 3 5 4 11 6 7 3 . 10 47 . 22 . 49 Intercepted 5 | . . . . . . . . . . . . . . . . . . . . . 5 Damage Taken 17325 | . 619 646 . 95 3270 969 2334 242 142 333 453 302 1027 172 . 184 1222 . 328 . 4987 Core 2769 | . 97 25 . 9 464 136 340 30 . 38 25 . 62 10 . 23 78 . 25 . 1407 Absorbed by Shields 2594 | . . . . . 196 244 80 83 24 90 50 . 65 118 . 110 487 . 312 . 735 Reduced by Siege Mode 107 | . . . . . . . . . . . . . . . . . . . . . 107 Redirected to Shielding 630 | . . . . . 225 41 101 . . . . 40 . 12 . . 49 . 147 . 15 Ignored by Resistances 968 | . . . . . . . . . . . 94 . 53 2 . 47 236 . . . 536 Regen/Repaired (Parts) 961 | . 69 . . . 90 213 . . . . . . 589 . . . . . . . . Core Remaining (%) 71 | 100 . . . 47 15 80 . . 56 . . . . 86 . . . . 89 100 . Volleys Fired 497 | 7 59 44 . 9 58 17 74 16 6 8 27 12 9 10 5 2 37 17 35 . 45 Largest 3 | 2 2 2 . 2 2 2 2 2 1 2 2 2 2 2 1 2 2 1 2 . 3 Hottest 315 | 100 100 100 . 80 86 96 96 96 250 160 160 115 114 260 57 118 118 80 286 . 315 Shots Fired 837 | 14 110 75 . 17 102 26 135 24 6 16 41 25 18 12 5 4 54 17 37 1 98 Gun 409 | 14 109 57 . 17 89 . . . . 16 41 25 . . . . . 17 9 . 15 Cannon 336 | . . 7 . . 2 26 117 17 6 . . . 18 4 5 4 45 . 1 1 83 Launcher 83 | . . 3 . . 11 . 18 7 . . . . . 8 . . 9 . 27 . . Special 9 | . 1 8 . . . . . . . . . . . . . . . . . . . Kinetic 406 | . 16 23 . . 46 26 115 17 . . . 11 18 4 5 4 45 . . 1 75 Thermal 307 | 14 94 29 . . 45 . 2 . 6 16 41 14 . 8 . . . 17 10 . 11 Explosive 36 | . . 3 . . 8 . 18 7 . . . . . . . . . . . . . Electromagnetic 76 | . . 20 . 17 3 . . . . . . . . . . . 9 . 27 . . Entropic 12 | . . . . . . . . . . . . . . . . . . . . . 12 Robot Hit Streak 19 | 6 8 19 . 3 17 5 7 8 10 11 14 12 6 3 1 1 10 10 11 . 6 Robot Miss Streak 8 | 1 3 3 . 3 2 2 3 2 2 2 3 2 2 3 3 2 3 1 4 . 8 Penetration Max 1 | . . . . . . . . . . . . . . . . . . . . . 1 Secondary Targets 6 | . 1 . . 1 3 . . . . . 1 . . . . . . . . . . Max Gunslinging Chain 1 | . 1 . . 1 1 . . . . . 1 . . . . . . . . . . Shots Hit Robots 609 | 12 65 43 . 7 138 45 74 21 5 16 27 17 13 5 2 1 29 16 10 . 63 Core Hits 398 | 5 35 15 . 5 55 14 77 21 22 9 22 4 4 7 1 2 21 6 23 . 50 Critical Kills 3 | . . . . . 2 1 . . . . . . . . . . . . . . . Critical Parts Destroyed 13 | . . 1 . . 5 5 . . . . . 1 . . . . . . . . 1 Critical Strikes 55 | 1 3 3 . . 14 6 10 1 . . . 1 3 1 . . 6 . . . 6 Burn 11 | 1 3 1 . . 6 . . . . . . . . . . . . . . . . Destroy 2 | . . 1 . . . . . . . . . 1 . . . . . . . . . Blast 26 | . . 1 . . . . 10 1 . . . . 3 1 . . 6 . . . 4 Smash 13 | . . . . . 7 6 . . . . . . . . . . . . . . . Sever 1 | . . . . . 1 . . . . . . . . . . . . . . . . Detonate 1 | . . . . . . . . . . . . . . . . . . . . . 1 Sunder 1 | . . . . . . . . . . . . . . . . . . . . . 1 Melee Attacks 162 | . . . . . 100 44 5 7 . . . . . . . . . . . . 6 Impact 138 | . . . . . 88 38 5 7 . . . . . . . . . . . . . Slashing 18 | . . . . . 12 6 . . . . . . . . . . . . . . . Piercing . | . . . . . . . . . . . . . . . . . . . . . . Entropic 6 | . . . . . . . . . . . . . . . . . . . . . 6 Sneak Attacks 17 | . . . . . 8 2 . 7 . . . . . . . . . . . . . Combat Hostiles 2 | . . . . . 1 1 . . . . . . . . . . . . . . . Follow-up Attacks 14 | . . . . . 10 4 . . . . . . . . . . . . . . . Damage Inflicted 26228 | 153 843 799 . 116 4956 1566 4822 1980 813 385 781 435 495 654 87 71 1604 457 1193 . 4018 Guns 5333 | 153 843 489 . 89 1066 . . . . 385 781 435 . . . . . 457 58 . 577 Cannons 6923 | . . 86 . . 25 350 2021 367 139 . . . 495 73 87 71 1042 . 62 . 2105 Explosions 8944 | . . 224 . 27 1015 . 2800 1056 674 . . . . 581 . . 562 . 1073 . 932 Melee 5027 | . . . . . 2850 1216 . 557 . . . . . . . . . . . . 404 Ramming 1 | . . . . . . . 1 . . . . . . . . . . . . . . Kinetic 7544 | . 139 276 . . 548 350 2021 367 . . . 163 495 73 87 71 1042 . . . 1912 Thermal 6197 | 153 704 196 . 27 543 . . . 813 385 781 272 . 581 . . . 457 160 . 1125 Explosive 4871 | . . 224 . . 791 . 2800 1056 . . . . . . . . . . . . . Electromagnetic 2011 | . . 103 . 89 224 . . . . . . . . . . . 562 . 1033 . . Impact 4131 | . . . . . 2566 1008 . 557 . . . . . . . . . . . . . Slashing 492 | . . . . . 284 208 . . . . . . . . . . . . . . . Piercing . | . . . . . . . . . . . . . . . . . . . . . . Entropic 981 | . . . . . . . . . . . . . . . . . . . . . 981 Highest Corruption 19 | . 1 1 1 1 . 3 3 3 3 3 3 3 3 . . . . . 19 5 2 Average Corruption 2 | . 1 1 1 1 . 1 2 3 3 2 3 3 3 . . . . . 17 5 1 Corruption Purged 4 | . . . . . . 3 1 . . . . . . . . . . . . . . Corruption Blocked . | . . . . . . . . . . . . . . . . . . . . . . Effects 137 | . 11 16 3 5 . 4 7 23 2 1 15 25 1 . . . . . 19 4 1 Message Errors 36 | . 4 6 1 . . 1 2 3 1 1 3 4 . . . . . . 7 2 1 Matter Fused 31 | . 1 3 1 3 . 1 2 6 1 . 3 6 . . . . . . 4 . . Heat Flow Errors 15 | . 3 2 . . . 1 1 3 . . 1 2 . . . . . . 2 . . Energy Discharges 16 | . 1 3 . 1 . . . 2 . . 2 5 . . . . . . 1 1 . Parts Rejected 2 | . . . . . . . . 1 . . . 1 . . . . . . . . . Parts Fused 2 | . . . 1 . . . . . . . . 1 . . . . . . . . . Data Loss (minor) 13 | . . 1 . . . 1 . 4 . . 4 2 . . . . . . 1 . . Data Loss (major) 7 | . . 1 . . . . 2 2 . . 1 . . . . . . . 1 . . Misfires 7 | . 2 . . . . . . 1 . . . 2 . . . . . . 1 1 . Alerts 7 | . . . . 1 . . . 1 . . 1 2 1 . . . . . 1 . . Weapon Failures 1 | . . . . . . . . . . . . . . . . . . . 1 . . Overload Shots 2 | . . . . . . . . . . . . . . . . . . . 2 . . Overflow Damage 1445 | . . 10 . . 764 265 41 199 . . . . . 60 . . 10 . 26 . 70 Projectiles 92 | . . . . . . 2 8 27 . . . . . . . . 10 . . . 45 Explosions 214 | . . 10 . . 32 . 33 35 . . . . . 60 . . . . 26 . 18 Melee 1139 | . . . . . 732 263 . 137 . . . . . . . . . . . . 7 Knockbacks 84 | . . . . . 12 . 18 9 . . . . 10 . 1 . 10 . . . 24 Impact 13 | . . . . . 10 . . 3 . . . . . . . . . . . . . Kinetic 63 | . . . . . . . 17 5 . . . . 8 . 1 . 10 . . . 22 Secondary 8 | . . . . . 2 . 1 1 . . . . 2 . . . . . . . 2 Self-Inflicted Damage 284 | . . . . . 82 . . . . . . . . . . . 73 . 69 . 60 Shots 20 | . . . . . 4 . . . . . . . . . . . 5 . 7 . 4 Rammed 1 | . . . . . . . 1 . . . . . . . . . . . . . . Targets Rammed 1 | . . . . . . . 1 . . . . . . . . . . . . . . Kicked . | . . . . . . . . . . . . . . . . . . . . . . Crushed . | . . . . . . . . . . . . . . . . . . . . . . Highest Temperature 610 | 156 352 262 . 93 278 220 223 197 208 . 253 261 200 200 . . 28 186 200 23 610 Average Temperature 111 | 60 78 49 . 48 78 86 36 88 100 . 112 132 129 104 . . 10 82 74 23 203 Received Heat Transfer 3578 | . 270 204 . . 1582 205 318 22 9 . 295 . 98 10 . 45 201 . 30 . 289 Effects 34 | . 2 2 . . . . . . . . . 2 1 . . . . . . . 27 Shutdowns 12 | . . . . . . . . . . . . . . . . . . . . . 12 Energy Bleed 3 | . . . . . . . . . . . . . 1 . . . . . . . 2 Interference 7 | . 1 2 . . . . . . . . . 2 . . . . . . . . 2 Matter Decay 3 | . 1 . . . . . . . . . . . . . . . . . . . 2 Short Circuit 2 | . . . . . . . . . . . . . . . . . . . . . 2 Damage (minor) 4 | . . . . . . . . . . . . . . . . . . . . . 4 Damage (major) 3 | . . . . . . . . . . . . . . . . . . . . . 3 Siege Activations 1 | . . . . . . . . . . . . . . . . . . . . . 1 Total Turns 16 | . . . . . . . . . . . . . . . . . . . . . 16 Longest Duration 16 | . . . . . . . . . . . . . . . . . . . . . 16 Robots Corrupted 23 | . . . . . 11 2 . 3 . . . . . . . . 2 . 5 . . Combat Hostiles 17 | . . . . . 9 1 . . . . . . . . . . 2 . 5 . . Parts Fried 26 | . . . . . 13 . . 5 . . . . . . . . 4 . 4 . . Impact Corruptions 47 | . . . . . 31 11 . 5 . . . . . . . . . . . . . Robots Melted 19 | . . . . . 1 . . . 6 1 3 . . . . . . . 1 . 7 Combat Hostiles 18 | . . . . . 1 . . . 6 1 2 . . . . . . . 1 . 7 Parts Melted 79 | 2 4 1 . . 5 1 . . 22 5 8 . . . . . . . 3 . 28 Heat Transferred 20176 | 518 2294 666 . 50 1813 . . . 4880 725 1725 333 . 880 . . . 592 450 . 5250 Parts Sabotaged 4 | . . . . . . . 3 . . . . . . . . . 1 . . . . Parts Stolen . | . . . . . . . . . . . . . . . . . . . . . . Parts Stripped . | . . . . . . . . . . . . . . . . . . . . . . Power Chain Reactions 3 | . . . . 1 1 . . . . . . . . . . . . . 1 . . Alert | -11 -10 -10 -10 -9 -8 -7 -6 -6 -6 -5 -5 -5 -5 -4 -4 -4 -4 -4 -3 -3 -2 ------- Run | Yrd Mat Min Exi Min Mat Fac Fac Ext Cet Fac Upp Upp War Pro Fac Upp Upp Zhi Pro Res Res Peak Influence 684 | 20 233 198 . 53 684 443 479 361 321 87 . . . . 4 . . . . 56 298 Initial 310 | . 13 60 . . 20 310 14 219 196 67 . . . . . . . . . 54 31 Average 155 | 11 123 36 . 21 261 160 167 245 256 38 . . . . . . . . . 54 130 Maximum Alert Level 2 | . 1 . . . 2 2 2 1 1 . . . . . . . . . . . 1 Low Security (%) 66 | 100 88 100 . 100 42 50 67 29 18 100 . . . . 100 . . . . 100 57 Level 1 25 | . 11 . . . 34 45 16 70 81 . . . . . . . . . . . 42 Level 2 7 | . . . . . 22 4 15 . . . . . . . . . . . . . . Level 3 . | . . . . . . . . . . . . . . . . . . . . . . Level 4 . | . . . . . . . . . . . . . . . . . . . . . . Level 5 . | . . . . . . . . . . . . . . . . . . . . . . High Security . | . . . . . . . . . . . . . . . . . . . . . . Max Security . | . . . . . . . . . . . . . . . . . . . . . . Squads Dispatched 34 | . 3 . . . 7 8 10 1 . 1 . . . . . . 1 . . 3 . Investigation 12 | . 2 . . . 3 3 2 1 . . . . . . . . . . . 1 . Extermination 8 | . . . . . . 3 4 . . 1 . . . . . . . . . . . Reinforcement 11 | . 1 . . . 3 1 4 . . . . . . . . . . . . 2 . Assault 2 | . . . . . 1 . . . . . . . . . . . 1 . . . . Garrison 1 | . . . . . . 1 . . . . . . . . . . . . . . . Intercept . | . . . . . . . . . . . . . . . . . . . . . . Searches Triggered . | . . . . . . . . . . . . . . . . . . . . . . Construction Impeded 1 | . . . . . . . 1 . . . . . . . . . . . . . . Haulers Reinforced 1 | . . . . . . . . . . . . . . . . . . . . 1 . Active Scanning Responses . | . . . . . . . . . . . . . . . . . . . . . . Cargo Convoy Interrupts 1 | . . . . . . . 1 . . . . . . . . . . . . . . Stealth | -11 -10 -10 -10 -9 -8 -7 -6 -6 -6 -5 -5 -5 -5 -4 -4 -4 -4 -4 -3 -3 -2 --------- Run | Yrd Mat Min Exi Min Mat Fac Fac Ext Cet Fac Upp Upp War Pro Fac Upp Upp Zhi Pro Res Res Distress Signals 20 | . 1 1 . . 7 1 . 1 2 . . . . . . . . . . 1 6 Communications Jammed 38 | . . . . . . 3 3 1 . . . . . . . . . . . . 31 Distress Signals 37 | . . . . . . 3 2 1 . . . . . . . . . . . . 31 Times Spotted 351 | . 26 11 . 6 78 10 45 12 8 4 5 2 55 15 1 4 22 . 12 2 33 Peak Tracking Total 15 | . 3 3 . 4 6 3 10 4 5 2 5 2 15 4 1 4 7 . 4 1 7 Tactical Retreats 32 | . 4 2 . . 18 . 3 . . . . . 3 . . . . . . . 2 Traps | -11 -10 -10 -10 -9 -8 -7 -6 -6 -6 -5 -5 -5 -5 -4 -4 -4 -4 -4 -3 -3 -2 ------- Run | Yrd Mat Min Exi Min Mat Fac Fac Ext Cet Fac Upp Upp War Pro Fac Upp Upp Zhi Pro Res Res Traps Triggered 6 | . 2 . . . 1 1 . 1 . . . . . . . . . . . 1 . Indirectly . | . . . . . . . . . . . . . . . . . . . . . . Trap Hack Attempts . | . . . . . . . . . . . . . . . . . . . . . . Triggered . | . . . . . . . . . . . . . . . . . . . . . . Disarmed . | . . . . . . . . . . . . . . . . . . . . . . Reprogrammed . | . . . . . . . . . . . . . . . . . . . . . . Reused . | . . . . . . . . . . . . . . . . . . . . . . Traps Extracted . | . . . . . . . . . . . . . . . . . . . . . . Installed . | . . . . . . . . . . . . . . . . . . . . . . Triggered 14 | . . . . . . . . . . . 3 . 9 1 . . 1 . . . . Machines | -11 -10 -10 -10 -9 -8 -7 -6 -6 -6 -5 -5 -5 -5 -4 -4 -4 -4 -4 -3 -3 -2 ---------- Run | Yrd Mat Min Exi Min Mat Fac Fac Ext Cet Fac Upp Upp War Pro Fac Upp Upp Zhi Pro Res Res Machines Disabled 8 | . . . . . 1 . . 2 . 2 . . . . . . 2 1 . . . Max in Single Turn 1 | . . . . . 1 . . 1 . . . . . . . . 1 1 . . . Garrison Access 2 | . . . . . . 1 . . . . . . . . . . . . . . 1 Energy Cycler 1 | . . . . . . . . 1 . . . . . . . . . . . . . Machines Repaired . | . . . . . . . . . . . . . . . . . . . . . . Machines Dismantled . | . . . . . . . . . . . . . . . . . . . . . . Machines Sabotaged . | . . . . . . . . . . . . . . . . . . . . . . Overloaded Fab Kills . | . . . . . . . . . . . . . . . . . . . . . . Hacking | -11 -10 -10 -10 -9 -8 -7 -6 -6 -6 -5 -5 -5 -5 -4 -4 -4 -4 -4 -3 -3 -2 --------- Run | Yrd Mat Min Exi Min Mat Fac Fac Ext Cet Fac Upp Upp War Pro Fac Upp Upp Zhi Pro Res Res Machines Accessed 66 | . 8 . 2 . 10 9 9 4 1 3 . 2 6 1 1 1 1 4 . 2 2 Terminals 30 | . 6 . . . 7 2 4 3 1 3 . . . 1 1 . . . . 2 . Fabricators 1 | . . . . . . . 1 . . . . . . . . . . . . . . Repair Stations 7 | . 1 . . . 1 3 2 . . . . . . . . . . . . . . Recycling Units 4 | . 1 . . . 1 1 . 1 . . . . . . . . . . . . . Scanalyzers 3 | . . . . . 1 1 1 . . . . . . . . . . . . . . Garrison Access 5 | . . . . . . 2 1 . . . . . . . . . . . . . 2 Total Hacks 170 | . 26 . 5 . 29 36 19 10 1 5 . 4 6 1 3 1 1 17 . 3 3 Successful 98 | . 13 . 5 . 16 23 5 4 . 1 . 4 6 1 . 1 1 17 . 1 . Failed 72 | . 13 . . . 13 13 14 6 1 4 . . . . 3 . . . . 2 3 Catastrophic 16 | . . . . . 2 2 3 2 1 2 . . . . 3 . . . . . 1 Database Lockouts . | . . . . . . . . . . . . . . . . . . . . . . Manual 56 | . 17 . 1 . 18 6 6 . 1 4 . . . . 1 . . . . 2 . Terminals 78 | . 21 . . . 17 9 11 7 1 5 . . . 1 3 . . . . 3 . Fabricators 2 | . . . . . . . 2 . . . . . . . . . . . . . . Repair Stations 16 | . 3 . . . 3 7 3 . . . . . . . . . . . . . . Recycling Units 13 | . 2 . . . 5 3 . 3 . . . . . . . . . . . . . Scanalyzers 18 | . . . . . 4 13 1 . . . . . . . . . . . . . . Garrison Access 9 | . . . . . . 4 2 . . . . . . . . . . . . . 3 Terminal Hacks 45 | . 1 . 5 . . 4 2 2 . . . 4 6 1 . 1 1 17 . 1 . Record 19 | . . . 4 . . . . . . . . 3 5 1 . . 1 5 . . . Part Schematic 4 | . . . . . . . . . . . . . . . . . . 4 . . . Robot Analysis 4 | . . . . . . . . . . . . . . . . . . 4 . . . Prototype ID Bank 5 | . 1 . . . . . . . . . . . . . . . . 4 . . . Open Door 5 | . . . . . . . . 2 . . . 1 1 . . 1 . . . . . Open DSF 1 | . . . . . . . . . . . . . . . . . . . . 1 . Branch Access Points 1 | . . . . . . . 1 . . . . . . . . . . . . . . Terminal Index 1 | . . . . . . . 1 . . . . . . . . . . . . . . Alert Level 1 | . . . . . . 1 . . . . . . . . . . . . . . . Unreport Threat 2 | . . . . . . 2 . . . . . . . . . . . . . . . Locate Traps 1 | . . . . . . 1 . . . . . . . . . . . . . . . Derelict Proto ID Bank 1 | . . . 1 . . . . . . . . . . . . . . . . . . Fabricator Hacks . | . . . . . . . . . . . . . . . . . . . . . . Repair Station Hacks 8 | . 2 . . . 2 3 1 . . . . . . . . . . . . . . Scan Component 5 | . 1 . . . 1 2 1 . . . . . . . . . . . . . . Repair 3 | . 1 . . . 1 1 . . . . . . . . . . . . . . . Recycling Unit Hacks 7 | . 1 . . . 3 1 . 2 . . . . . . . . . . . . . Process 1 | . . . . . 1 . . . . . . . . . . . . . . . . Report Inventory 5 | . 1 . . . 2 1 . 1 . . . . . . . . . . . . . Retrieve Components 1 | . . . . . . . . 1 . . . . . . . . . . . . . Scanalyzer 17 | . . . . . 4 12 1 . . . . . . . . . . . . . . Insert Component 11 | . . . . . 4 6 1 . . . . . . . . . . . . . . Analyze 6 | . . . . . . 6 . . . . . . . . . . . . . . . Garrison Access Hacks 1 | . . . . . . 1 . . . . . . . . . . . . . . . Seal Access 1 | . . . . . . 1 . . . . . . . . . . . . . . . Unauthorized Hacks 20 | . 9 . . . 7 2 1 . . 1 . . . . . . . . . . . Terminals 17 | . 8 . . . 6 1 1 . . 1 . . . . . . . . . . . Assimilate 2 | . . . . . 1 . 1 . . . . . . . . . . . . . . Botnet 5 | . 2 . . . 1 1 . . . 1 . . . . . . . . . . . Skim 10 | . 6 . . . 4 . . . . . . . . . . . . . . . . Fabricators . | . . . . . . . . . . . . . . . . . . . . . . Repair Stations . | . . . . . . . . . . . . . . . . . . . . . . Recycling Units 3 | . 1 . . . 1 1 . . . . . . . . . . . . . . . Tunnel 3 | . 1 . . . 1 1 . . . . . . . . . . . . . . . Scanalyzers . | . . . . . . . . . . . . . . . . . . . . . . Garrison Access . | . . . . . . . . . . . . . . . . . . . . . . Data Cores Recovered . | . . . . . . . . . . . . . . . . . . . . . . Used . | . . . . . . . . . . . . . . . . . . . . . . Hacking Detections 42 | . 7 . . . 9 7 8 2 2 3 . . . . 1 . . . . 1 2 Full Trace Events 8 | . 2 . . . 1 2 2 1 . . . . . . . . . . . . . Feedback Events . | . . . . . . . . . . . . . . . . . . . . . . Feedback Blocked . | . . . . . . . . . . . . . . . . . . . . . . Robot Schematics Acquired . | . . . . . . . . . . . . . . . . . . . . . . Robots Built . | . . . . . . . . . . . . . . . . . . . . . . Authchips . | . . . . . . . . . . . . . . . . . . . . . . Time . | . . . . . . . . . . . . . . . . . . . . . . Total Robot Build Rating . | . . . . . . . . . . . . . . . . . . . . . . Part Schematics Acquired 9 | . . . . . . 5 . . . . . . . . . . . 4 . . . Parts Built . | . . . . . . . . . . . . . . . . . . . . . . Authchips . | . . . . . . . . . . . . . . . . . . . . . . Time . | . . . . . . . . . . . . . . . . . . . . . . Total Part Build Rating . | . . . . . . . . . . . . . . . . . . . . . . Parts Repaired 3 | . 1 . . . 1 1 . . . . . . . . . . . . . . . Time 108 | . 26 . . . 38 44 . . . . . . . . . . . . . . . Parts Recycled . | . . . . . . . . . . . . . . . . . . . . . . Recycled Matter 73 | . . . . . 73 . . . . . . . . . . . . . . . . Retrieved Matter . | . . . . . . . . . . . . . . . . . . . . . . Retrieved Components 2 | . . . . . . . . 2 . . . . . . . . . . . . . Parts Scanalyzed 6 | . . . . . . 6 . . . . . . . . . . . . . . . Part Schematics Acquired 5 | . . . . . . 5 . . . . . . . . . . . . . . . Parts Damaged 3 | . . . . . . 3 . . . . . . . . . . . . . . . Bothacking | -11 -10 -10 -10 -9 -8 -7 -6 -6 -6 -5 -5 -5 -5 -4 -4 -4 -4 -4 -3 -3 -2 ------------ Run | Yrd Mat Min Exi Min Mat Fac Fac Ext Cet Fac Upp Upp War Pro Fac Upp Upp Zhi Pro Res Res Used RIF Installer . | . . . . . . . . . . . . . . . . . . . . . . Robots Hacked . | . . . . . . . . . . . . . . . . . . . . . . Non-combat . | . . . . . . . . . . . . . . . . . . . . . . Combat . | . . . . . . . . . . . . . . . . . . . . . . Robot Hacks Applied . | . . . . . . . . . . . . . . . . . . . . . . Relay Couplers Released 2 | . . . . . . . . . . . . . . . . . . . . . 2 Machine Destruction 2 | . . . . . . . . . . . . . . . . . . . . . 2 Fabnet Peak Effective % . | . . . . . . . . . . . . . . . . . . . . . . Robots Rewired 9 | . . . . . . . . 3 . . . . 5 . . . 1 . . . . Allies Hacked . | . . . . . . . . . . . . . . . . . . . . . . Hacks Repelled . | . . . . . . . . . . . . . . . . . . . . . . Allies | -11 -10 -10 -10 -9 -8 -7 -6 -6 -6 -5 -5 -5 -5 -4 -4 -4 -4 -4 -3 -3 -2 -------- Run | Yrd Mat Min Exi Min Mat Fac Fac Ext Cet Fac Upp Upp War Pro Fac Upp Upp Zhi Pro Res Res Total Allies 12 | . . . . . . . 1 5 . . . . 5 . . . 1 . . . . Largest Group 5 | . . . . . . . 1 5 4 1 . . 5 3 3 3 3 . . . . Highest-Rated Group 248 | . . . . . . . 10 150 116 39 . . 248 131 125 125 125 . . . . Highest-Rated Ally 68 | . . . . . . . 10 39 39 39 . . 68 49 43 43 47 . . . . Total Orders 16 | . . . . . . . . . . . . 5 6 . . 4 1 . . . . STAY 5 | . . . . . . . . . . . . . 5 . . . . . . . . FOLLOW 1 | . . . . . . . . . . . . . 1 . . . . . . . . EXPLORE 7 | . . . . . . . . . . . . 3 . . . 3 1 . . . . RETURN 3 | . . . . . . . . . . . . 2 . . . 1 . . . . . Ally Attacks 140 | . . . . . . . . 28 14 1 . . 31 26 1 20 19 . . . . Total Damage 4562 | . . . . . . . . 526 282 114 . . 1673 636 37 540 754 . . . . Kills 29 | . . . . . . . . 5 2 1 . . 4 8 . 3 6 . . . . Allies Corrupted . | . . . . . . . . . . . . . . . . . . . . . . Allies Melted 3 | . . . . . . . . . . . . . 2 . . . . . . . 1 Intel | -11 -10 -10 -10 -9 -8 -7 -6 -6 -6 -5 -5 -5 -5 -4 -4 -4 -4 -4 -3 -3 -2 ------- Run | Yrd Mat Min Exi Min Mat Fac Fac Ext Cet Fac Upp Upp War Pro Fac Upp Upp Zhi Pro Res Res Robot Analysis Total 4 | . . . . . . . . . . . . . . . . . . 4 . . . Derelict Logs Recovered 8 | . . 2 . 1 . . . . . . 1 1 . 2 . . 1 . . . . Drone Launches 8 | . . . . . . . . . . . . 4 . . . 3 1 . . . . Drone Recoveries 6 | . . . . . . . . . . . . 3 . . . 3 . . . . . Exploration | -11 -10 -10 -10 -9 -8 -7 -6 -6 -6 -5 -5 -5 -5 -4 -4 -4 -4 -4 -3 -3 -2 ------------- Run | Yrd Mat Min Exi Min Mat Fac Fac Ext Cet Fac Upp Upp War Pro Fac Upp Upp Zhi Pro Res Res Turns Passed 23556 | 81 1889 1975 374 707 4057 1313 2329 1179 465 967 864 1014 1237 586 235 636 1118 397 553 335 1245 Spaces Moved 11189 | 28 1032 792 349 588 1310 748 1269 513 267 372 434 449 685 350 137 244 487 214 297 207 417 Core 14 | . . 2 . . 2 . 2 7 . . . . . . . . . . . . 1 Treads 5630 | . 991 . . . 16 . 48 128 239 294 434 449 685 350 137 244 487 214 297 207 410 Legs 1449 | 28 41 561 . . 540 14 . 231 28 . . . . . . . . . . . 6 Wheels 4068 | . . 229 349 588 752 734 1191 147 . 78 . . . . . . . . . . . Hover 28 | . . . . . . . 28 . . . . . . . . . . . . . . Flight . | . . . . . . . . . . . . . . . . . . . . . . Fastest Speed 105 | 120 120 105 105 105 110 110 108 115 120 160 160 160 160 160 160 160 160 160 160 160 160 Average Speed 166 | 120 158 207 105 105 205 122 141 184 159 242 160 160 160 160 160 160 160 160 160 160 258 Slowest Speed 1300 | 120 160 450 105 105 950 610 1250 1200 240 320 160 160 160 160 160 160 160 160 160 160 1300 Overloaded Moves . | . . . . . . . . . . . . . . . . . . . . . . Propulsion Burnouts . | . . . . . . . . . . . . . . . . . . . . . . Robots Hopped . | . . . . . . . . . . . . . . . . . . . . . . Cave-ins Triggered . | . . . . . . . . . . . . . . . . . . . . . . Teleports 1 | . . . . . . . . . . . . . . . . . . . . . 1 Exploration Rate (%) 50 | 3 97 99 72 96 69 16 19 60 62 8 50 81 74 55 3 61 60 62 53 6 13 Regions Visited 21 Branch Regions 13 Pre-discovered Areas 10 | . 2 . 1 1 1 1 . . . . . . . 1 . . . 3 . . . Known Exits Taken 12 | . . 1 . . . . 1 . 1 1 1 1 . 1 1 . 1 1 1 1 . Unknown Exits Taken 9 | 1 1 . 1 1 1 1 . 1 . . . . 1 . . 1 . . . . . Scrap Searched 11 | . . 2 . 1 . . . . . . . 2 . 1 . 1 3 . 1 . . Spaces Dug 46 | . 1 7 . . 11 6 14 . . . 4 1 . . . . . . 2 . . Terrain Destroyed 422 | . 1 32 . 3 80 8 118 86 3 . 4 8 7 17 2 3 15 . 4 1 30 Melee 18 | . . . . . 11 3 4 . . . . . . . . . . . . . . Projectile 109 | . 1 8 . . 1 5 27 . 1 . 4 8 7 2 2 3 15 . 4 1 20 AOE 295 | . . 24 . 3 68 . 87 86 2 . . . . 15 . . . . . . 10 Terrain Rammed . | . . . . . . . . . . . . . . . . . . . . . . Walls Destroyed . | . . . . . . . . . . . . . . . . . . . . . . Machines Disabled . | . . . . . . . . . . . . . . . . . . . . . . Actions | -11 -10 -10 -10 -9 -8 -7 -6 -6 -6 -5 -5 -5 -5 -4 -4 -4 -4 -4 -3 -3 -2 --------- Run | Yrd Mat Min Exi Min Mat Fac Fac Ext Cet Fac Upp Upp War Pro Fac Upp Upp Zhi Pro Res Res Total 15076 | 61 1174 1030 356 664 2427 1064 1663 712 304 424 556 720 809 363 150 485 776 260 351 212 515 Wait 2435 | 17 55 170 . 47 847 196 231 42 3 14 76 243 30 2 . 231 225 . . . 6 Move 11168 | 27 1031 791 348 587 1309 747 1268 512 266 371 433 448 684 349 136 243 486 213 296 206 417 Hop . | . . . . . . . . . . . . . . . . . . . . . . Pick Up 194 | 4 12 7 4 10 33 20 22 22 7 12 6 4 7 . 4 1 3 7 2 1 6 Fast Attach 68 | 1 2 1 2 . 8 7 11 10 . 2 . 2 6 . . 1 3 4 4 . 4 Attach 114 | . 2 6 . 3 23 8 12 9 9 2 4 . 1 . 1 . 3 4 2 1 24 Detach 14 | . . . . . 3 1 1 1 3 . . . . . . . . 1 1 . 3 Swap 141 | 2 8 10 . . 34 4 18 16 3 2 6 6 9 2 1 4 3 4 5 2 2 Drop 181 | 3 5 1 2 8 23 24 20 23 7 13 4 5 15 . 3 2 2 10 6 2 3 Fire 497 | 7 59 44 . 9 58 17 74 16 6 8 27 12 9 10 5 2 37 17 35 . 45 Melee 146 | . . . . . 89 40 5 7 . . . . . . . . . . . . 5 Ram 1 | . . . . . . . 1 . . . . . . . . . . . . . . Kick . | . . . . . . . . . . . . . . . . . . . . . . Crush . | . . . . . . . . . . . . . . . . . . . . . . Escape Stasis 5 | . . . . . . . . 5 . . . . . . . . . . . . . Rewire 112 | . . . . . . . . 49 . . . . 48 . . 1 14 . . . . Trap . | . . . . . . . . . . . . . . . . . . . . . . Miscellaneous . | . . . . . . . . . . . . . . . . . . . . . . Route ------- -11/Scrapyard -10/Materials (discovered 5 exits: *Mat x3 / [*Min] / Sub) -10/Mines (discovered 4 exits: *Mat x2 / *Exi / *Sub) -10/Exiles -9/Mines (discovered 2 exits: *Mat x2) -8/Materials (discovered 2 exits: *Fac x2) -7/Factory -6/Factory (discovered 5 exits: *Fac / Low x2 / *Ext x2) -6/Extension (discovered 3 exits: *Fac x2 / *Cet) -6/Cetus (discovered 3 exits: *Fac x2 / [*Arc]) -5/Factory -5/Upper Caves -5/Upper Caves -5/Warlord -4/Proximity Caves -4/Factory (discovered 3 exits: *Res x2 / *Upp) -4/Upper Caves -4/Upper Caves (discovered 2 exits: *Res / *Zhi) -4/Zhirov -3/Proximity Caves -3/Research -2/Research (discovered 1 exit: Tes) History --------- Turn | Location | Event 15 | -11/Scrapyard | Discovered new exit (range 3) 82 | -11/Scrapyard | Entered Materials 301 | -10/Materials | Build established: Mutant 353 | -10/Materials | Discovered new exit (range 16) 507 | -10/Materials | Discovered new exit (range 16) 1207 | -10/Materials | Repaired Med. Laser 1384 | -10/Materials | Discovered new exit (range 16) 1496 | -10/Materials | Learned Storage emergency access door positions 1561 | -10/Materials | Learned location of Subcaves (-10) 1614 | -10/Materials | Identified exit to Materials 1659 | -10/Materials | Identified exit to Subcaves 1696 | -10/Materials | Learned Storage security intel 1722 | -10/Materials | Learned Storage emergency access door positions 1737 | -10/Materials | Learned 2 Storage zone layouts 1799 | -10/Materials | Learned Storage trap positions 1844 | -10/Materials | Learned Storage garrison access intel 1897 | -10/Materials | Learned 2 Materials zone layouts 1971 | -10/Materials | Entered Mines 2016 | -10/Mines | Lost 3 parts (1p2n) 2040 | -10/Mines | Learned Materials emergency access door positions 2371 | -10/Mines | Assembled infested the area 2884 | -10/Mines | Discovered exit to Subcaves (range 9) 3567 | -10/Mines | Identified exit to Exiles 3743 | -10/Mines | Discovered exit to Materials (range 15) 3939 | -10/Mines | Deemed a non-threat by the Exiles lab entrance 3946 | -10/Mines | Entered Exiles 3984 | -10/Exiles | Met 8R-AWN 4004 | -10/Exiles | Met EX-HEX 4037 | -10/Exiles | Met EX-BIN 4050 | -10/Exiles | Aligned with FarCom system 4051 | -10/Exiles | Given EX-Vault access code 4080 | -10/Exiles | Opened EX-Vault 4087 | -10/Exiles | Found Firepult 4110 | -10/Exiles | Warned to stay clear of 0b10 Research branches 4148 | -10/Exiles | Met EX-DEC 4159 | -10/Exiles | Learned location of Zion (-7) 4310 | -10/Exiles | Discovered new exit (range 10) 4320 | -10/Exiles | Left Exiles lab with Firepult 4320 | -10/Exiles | Entered Mines 4364 | -9/Mines | Discovered new exit (range 5) 4397 | -9/Mines | Joined a pair of Derelicts in attacking an 0b10 outpost 4621 | -9/Mines | Received a Rocket Launcher from a helpful Derelict 4673 | -9/Mines | Discovered new exit (range 10) 4681 | -9/Mines | A weapon hastily lodged in a ceiling crevice suddenly fell to the ground 4788 | -9/Mines | Core integrity fell below 50% 4895 | -9/Mines | Learned 2 Materials zone layouts 4910 | -9/Mines | Learned location of Storage (-7) 5027 | -9/Mines | Entered Materials 5027 | -8/Materials | Evolved 4 slots: Utility x4 5305 | -8/Materials | Build established: Infiltrator-Mutant 6104 | -8/Materials | Lost 4 parts (1p3u) 6555 | -8/Materials | Build established: Mutant 7039 | -8/Materials | Repaired Imp. Utility Shielding 7252 | -8/Materials | Build established: Scavenger-Mutant 7510 | -8/Materials | Discovered new exit (range 8) 8222 | -8/Materials | Build established: Mutant 8262 | -8/Materials | Core integrity fell below 50% 8310 | -8/Materials | Lost 5 parts (1p1n3u) 8469 | -8/Materials | Lost 3 parts (1p1n1w) 8842 | -8/Materials | Discovered new exit (range 4) 9027 | -8/Materials | First assault squad dispatched 9033 | -8/Materials | Core integrity fell below 20% 9084 | -8/Materials | Entered Factory 9084 | -7/Factory | Evolved 2 slots: Power x1, Propulsion x1 9402 | -7/Factory | Garrison activated, responded to threat 9616 | -7/Factory | Repaired Arm. Huge Wheel 9931 | -7/Factory | Build established: Infiltrator-Mutant 10283 | -7/Factory | Discovered new exit (range 15) 10397 | -7/Factory | Entered another Factory area 10397 | -6/Factory | Evolved 2 slots: Propulsion x1, Utility x1 11553 | -6/Factory | Identified exit to Lower Caves 11553 | -6/Factory | Identified exit to Extension 11982 | -6/Factory | Discovered new exit (range 15) 12097 | -6/Factory | Build established: Mutant 12339 | -6/Factory | Cargo convoy interrupted 12379 | -6/Factory | Destroyed 8 combat bots 12387 | -6/Factory | Lost 8 parts (1p1n5u1w) 12726 | -6/Factory | Entered Extension 12753 | -6/Extension | Lost 3 parts (2n1u) 12986 | -6/Extension | Energy Cycler disabled 12986 | -6/Extension | Rescued a captive Derelict 12986 | -6/Extension | Rescued a captive Derelict 12986 | -6/Extension | Rescued a captive Derelict 12987 | -6/Extension | Rescued a captive Derelict 12987 | -6/Extension | Rescued a captive Derelict 12988 | -6/Extension | Rescued a captive Derelict 12989 | -6/Extension | Rescued a captive Derelict 12990 | -6/Extension | Rescued a captive Derelict 12990 | -6/Extension | Rescued a captive Derelict 12991 | -6/Extension | Rescued a captive Derelict 12992 | -6/Extension | Rescued a captive Derelict 12998 | -6/Extension | Rescued a captive Derelict 13028 | -6/Extension | Build established: Scavenger-Mutant 13651 | -6/Extension | Disrupted transfer network 13688 | -6/Extension | Extracted ID and sensor layout for unrecognized location from A7's data core 13692 | -6/Extension | Discovered new exit (range 15) 13858 | -6/Extension | Discovered new exit (range 16) 13859 | -6/Extension | Discovered new exit (range 15) 13905 | -6/Extension | Entered Cetus 13905 | -6/Cetus | Accompanied by 4 allies 13926 | -6/Cetus | Spotted Cetus Guard 13926 | -6/Cetus | Spotted Cetus Guard 13926 | -6/Cetus | Destroyed Cetus Guard 13927 | -6/Cetus | Destroyed Cetus Guard 13928 | -6/Cetus | Spotted Cetus Guard 13929 | -6/Cetus | Spotted Cetus Guard 13930 | -6/Cetus | Destroyed Cetus Guard 13937 | -6/Cetus | Allies destroyed Cetus Guard 14025 | -6/Cetus | Discovered new exit (range 15) 14151 | -6/Cetus | Discovered new exit (range 16) 14184 | -6/Cetus | Spotted Cetus Guard 14185 | -6/Cetus | Spotted Cetus Guard 14187 | -6/Cetus | Spotted Cetus Guard 14189 | -6/Cetus | Spotted Cetus Guard 14192 | -6/Cetus | Allies destroyed Cetus Guard 14193 | -6/Cetus | Destroyed Cetus Guard 14194 | -6/Cetus | Destroyed Cetus Guard 14195 | -6/Cetus | Destroyed Cetus Guard 14211 | -6/Cetus | Discovered new exit (range 16) 14220 | -6/Cetus | Met Revision 17 14365 | -6/Cetus | Identified exit to Factory 14370 | -6/Cetus | Entered Factory 14370 | -5/Factory | Accompanied by 1 ally 14370 | -5/Factory | Evolved 2 slots: Propulsion x1, Utility x1 15168 | -5/Factory | Discovered new exit (range 8) 15335 | -5/Factory | Identified exit to Upper Caves 15337 | -5/Factory | Entered Upper Caves 16103 | -5/Upper Caves | Learned location of 1 exit from Proximity Caves 16174 | -5/Upper Caves | Discovered new exit (range 14) 16198 | -5/Upper Caves | Identified exit to Upper Caves 16201 | -5/Upper Caves | Entered another Upper Caves area 16554 | -5/Upper Caves | Learned location of 2 exits from Factory 16714 | -5/Upper Caves | Discovered new exit (range 25) 17064 | -5/Upper Caves | Learned Factory stockpile data 17064 | -5/Upper Caves | Learned Research security intel 17212 | -5/Upper Caves | Identified exit to Warlord 17215 | -5/Upper Caves | Entered Warlord 17271 | -5/Warlord | System corruption cleaned by Quarantine Array 17499 | -5/Warlord | Received a Watcher feed algorithm from an ecstatic Tinkerer 17864 | -5/Warlord | Met Warlord 17869 | -5/Warlord | Build established: Commander-Mutant 17889 | -5/Warlord | Warlord's base attacked by MAIN.C 18011 | -5/Warlord | Found Prototype Energy Gun 18012 | -5/Warlord | Identified Vortex Shotgun 18016 | -5/Warlord | Found Vortex Shotgun 18025 | -5/Warlord | Found Prototype Piercing Weapon 18026 | -5/Warlord | Identified Vortex Lance 18031 | -5/Warlord | Found Vortex Lance 18238 | -5/Warlord | Warlord forces counterattacked 18262 | -5/Warlord | Spotted Striker 18282 | -5/Warlord | Spotted Executioner 18355 | -5/Warlord | Lost 9 allies 18396 | -5/Warlord | Spotted Striker 18432 | -5/Warlord | Lost 6 allies 18435 | -5/Warlord | Discovered new exit (range 8) 18452 | -5/Warlord | Entered Proximity Caves 18452 | -4/Proximity Caves | Accompanied by 3 allies 18453 | -4/Proximity Caves | Identified exit to Factory 18571 | -4/Proximity Caves | Build established: Scavenger-Mutant 18775 | -4/Proximity Caves | Encountered an infested base 19038 | -4/Proximity Caves | Entered Factory 19038 | -4/Factory | Accompanied by 3 allies 19038 | -4/Factory | Evolved 2 slots: Power x1, Propulsion x1 19039 | -4/Factory | Identified exit to Upper Caves 19039 | -4/Factory | Identified exit to Research 19057 | -4/Factory | Discovered exit to Research (range 8) 19273 | -4/Factory | Entered Upper Caves 19273 | -4/Upper Caves | Accompanied by 3 allies 19286 | -4/Upper Caves | Encountered a Warlord checkpoint 19771 | -4/Upper Caves | Discovered new exit (range 14) 19909 | -4/Upper Caves | Entered another Upper Caves area 19909 | -4/Upper Caves | Accompanied by 3 allies 19947 | -4/Upper Caves | Discovered exit to Research (range 19) 20016 | -4/Upper Caves | Attracted the attention of an 0b10 checkpoint 20055 | -4/Upper Caves | Learned 8 Research zone layouts 20084 | -4/Upper Caves | Encountered a Warlord checkpoint 20310 | -4/Upper Caves | Attracted the attention of an 0b10 outpost 20350 | -4/Upper Caves | Lost 3 allies 20371 | -4/Upper Caves | Destroyed 7 combat bots 20751 | -4/Upper Caves | Discovered new exit (range 11) 21022 | -4/Upper Caves | Identified exit to Zhirov 21027 | -4/Upper Caves | Entered Zhirov 21027 | -4/Zhirov | Discovered new exit (range 3) 21058 | -4/Zhirov | Met Zhirov 21091 | -4/Zhirov | Learned location of Quarantine (-3) 21091 | -4/Zhirov | Learned location of Testing (-2) 21091 | -4/Zhirov | Learned location of Command (-1) 21119 | -4/Zhirov | Zhirov requested help retrieving the SGEMP Prototype 21150 | -4/Zhirov | Found Alien Artifact 21150 | -4/Zhirov | Identified Integrated Reactor 21150 | -4/Zhirov | Installed Integrated Reactor, increased core energy generation (+10) 21172 | -4/Zhirov | Found Alien Artifact 21422 | -4/Zhirov | Identified exit to Proximity Caves 21424 | -4/Zhirov | Entered Proximity Caves 21536 | -3/Proximity Caves | Attracted the attention of an 0b10 checkpoint 21588 | -3/Proximity Caves | System corruption reached 10% 21714 | -3/Proximity Caves | Spotted B-86 Titan 21717 | -3/Proximity Caves | Destroyed B-86 Titan 21964 | -3/Proximity Caves | Discovered exit to Research (range 9) 21977 | -3/Proximity Caves | Entered Research 21977 | -3/Research | Evolved 2 slots: Utility x2 22007 | -3/Research | Identified exit to DSF 22177 | -3/Research | Revision forces began assault on 0b10 22200 | -3/Research | Met up with Revision 17++ 22227 | -3/Research | Discovered new exit (range 16) 22250 | -3/Research | Identified exit to Research 22272 | -3/Research | Build established: Scavenger-Skirmisher 22312 | -3/Research | Entered another Research area 22312 | -2/Research | Warlord forces began assault on 0b10 22312 | -2/Research | Evolved 2 slots: Power x1, Weapon x1 22313 | -2/Research | Identified exit to Testing 22422 | -2/Research | Research machine network offline 22607 | -2/Research | Build established: Generator-Skirmisher 22813 | -2/Research | Spotted Executioner 22817 | -2/Research | Spotted Executioner 22822 | -2/Research | Destroyed Executioner 22823 | -2/Research | Destroyed Executioner 22859 | -2/Research | Borebot progress halted 22864 | -2/Research | Spotted Striker 22865 | -2/Research | Spotted Striker 22885 | -2/Research | Destroyed Striker 22902 | -2/Research | Destroyed Striker 22933 | -2/Research | Lost 5 parts (3n2u) 23022 | -2/Research | Borebot progress halted 23111 | -2/Research | Lost 4 parts (2u2w) 23164 | -2/Research | Spotted Executioner 23169 | -2/Research | Spotted Striker 23172 | -2/Research | Destroyed Executioner 23174 | -2/Research | Destroyed Striker 23216 | -2/Research | Borebot progress halted 23471 | -2/Research | Spotted Executioner 23473 | -2/Research | Spotted Striker 23476 | -2/Research | Build established: Generator-Tank 23496 | -2/Research | Destroyed Striker 23497 | -2/Research | Spotted Striker 23499 | -2/Research | Identified Transdimensional Reconstructor 23499 | -2/Research | Warped through subspace 23499 | -2/Research | Spotted Striker 23525 | -2/Research | Core integrity fell below 50% 23525 | -2/Research | Destroyed Striker 23554 | -2/Research | Core integrity fell below 20% 23557 | -2/Research | Destroyed by Executioner with Helical Railgun Last Messages --------------- 23549_ Adv. Variable Charge Gun destroyed. 23550_ The unstable cave ceiling collapses. 23550_ Imp. Thermal Shield destroyed. 23550_ Hcp. Storage Unit destroyed. 23551_ The unstable cave ceiling collapses. 23551_ Imp. Remote Force Field tumbles out of recycling unit. 23551_ Adv. Weapon Cycler tumbles out of recycling unit. 23551_ Penetrated by Slug. 23553_ The unstable cave ceiling collapses. 23554_ Penetrated by Slug. 23555_ Knocked back. 23556_ The unstable cave ceiling collapses. 23556_ D-83 Annihilator suffers critical hit (Sunder). 23556_ D-83 Annihilator Imp. Medium Armor Plating ripped off. 23557_ The unstable cave ceiling collapses. 23557_ Penetrated by Slug. Map ----- +----------------------------------------------------+ | ?????????????????????????????????????????????????? | | ?????????????????????????????????????????????????? | | ?????????????????????????????????????????????????? | | ?????????????????????????????????????????????????? | | ?????????????????????????????????????????????????? | | ?????????????????????????????????????????????????? | | ?????????????????????????????????????????????????? | | ??????????????????????????????? ?????????????????? | | ?????????????????????????????????????????????????? | | ?????????????????????????????????????????????????? | | ?????????????? ??????????????????????????????????? | | ?????????????? ?????? ????????????????????? ????? | | ?????????????? ???? ????????? ?????????? ?????? | | ??????????? # ;##;;#+####?????????#??????????? | | ??????????? %# ;# ##??#?????????????#??? | | ??????????? " ;; ##??????????????????? | | ???????????? ? ; % #????????????#?????? | | ???????????? ; ?; ! #?#????#?#???#?????? | | ????????"????# % ## ! ##??####?????#????? | | ??????????" ?+ ;; #???????????????? ?? | | ??????????? ## #;! #?#?#???#??????????? | | ????????#???#;; ! ###?????##??#?#??? ? | | ?????????#####; %* ###?????#?? ?#?###?? | | ???? """T""" ! #?#???##? ????? ??? | | ???# #######??? ###? ? | | ???+ @d ? ???? | | ???# = #######?#######???? | | ???# % #?#??##??####?????? | | ???# # = ################?+# | | ???? wK # d ####"#" #""##??# ?? | | ???? ###?#? | | ?+?? # ""#??? | | ?#??? ########### ## # # E; ""#?? ? ? | | ????????#???????##+##+### # ""#?#??? | | ?#????????????# # # G##? ?? | | ??????????????# = # + ""####?## | | ?????? ? ?????#""" # # " ""##?#??# | | ????????? ?#??#""" # # """#??##?# | | ?????????????##""" # ; ######### | | ?????? ?? ????# # # #### | | ? ?? ??????#??# # # " # | | ?????? ??????#?? # # " ## """ | | ????###############+#####* #### # " ""## """ | | ???## !!! # =%[ [" " "" | | ????# !! + ! ! %" # | | ???## !!! # ! | | ????# # ! # """ | | ??#?# # ######## ########+##""# # """ | | ????# # #?####?# ?### ## # """ | | ??#?# ! # ###?#####???# ## # | +----------------------------------------------------+ Best States ------------- Heat Dissipation 116 Energy Generation 91 Energy Capacity 1290 Matter Stores 300 Matter Capacity 600 Sight Range 16 Terrain Scan Range 24 Terrain Scan Density 10 ECM Strength 1 Jamming Range 16 EM Shielding 4 Armor Coverage 525 Resistance: KI 25 Resistance: TH 25 Core Shielding 20 Propulsion Shielding 90 Utility Shielding 66 Point Defense Rating 80 Weapon Cycling 20 Melee Speed Boost 20 Phase Shifting 5 Evasion (%) 60 Recoil Reduction 6 Particle Charging 20 Kinecelleration 40 Item Schematics ----------------- Coolant Injector | -7/Factory | Scanalyzed Arm. Wheel | -7/Factory | Scanalyzed Hvy. Particle Cannon | -7/Factory | Scanalyzed Hvy. Ion Cannon | -7/Factory | Scanalyzed Hvy. Rocket Launcher | -7/Factory | Scanalyzed Assault Drone Bay | -4/Zhirov | Free Exp. Heat Sink | -4/Zhirov | Free Exp. Optical Array | -4/Zhirov | Free Imp. Arc Thrower | -4/Zhirov | Free Robot Schematics ------------------ None Fabricated ------------ Nothing Alien Tech Used ----------------- Integrated Reactor Transdimensional Reconstructor Achievements -------------- Revolutionary Research Challenges ------------ None Game ------ Seed StealthProjectionGreatsword Manual? 0 Play Time 04:07:19 Cumulative 286.4 hours Start 2024.09.13 @ 04:05:55 End 2024.09.13 @ 08:24:21 Sessions 1 Manual Loads 0 Difficulty Rogue Special Mode None Game No. 209 Rogue 199 Adventurer 0 Explorer 10 Win Type - Total 3 Types 3/0/0/0/0/0/0/0/0 Lore% 73 Gallery% 71 Achievement% 55 Wizard Run 0 Options --------- Layout 2 ASCII 0 Keyboard 0 Movement Arrows Keybinds 1 Fullscreen 1 Font 24/Smallcaps Map View 50x44 Zoom Use 0% Tactical HUD 1 Map Filters NONE Filters NONE Steam 1 RUN: 718f2576-5140-4c57-8107-4bf4f840bb94